fUST/lending_fUST_20240523
["ID","MTS","AMOUNT","RATE_DAILY","PERIOD"]
[327761608,1716444554800,-155.03720893,0.00022,2]
[327761609,1716444554822,-159.73051569,0.00022,2]
[327761610,1716444554846,-630.02129769,0.00022264,2]
[327761611,1716444554866,-5298.18473217,0.000223,6]
[327761612,1716444554887,-306.20867658,0.00022356,2]
[327761613,1716444554907,-166.666666,0.00022431,2]
[327761614,1716444554927,-290.0412881,0.000225,2]
[327761615,1716444554946,-166.666666,0.00022944,2]
[327761616,1716444554967,-608.72120872,0.00022952,2]
[327761617,1716444554986,-309.70579883,0.00023,2]
[327761618,1716444555006,-1589.84293686,0.00023,2]
[327761619,1716444555027,-306.20867658,0.00023128,2]
[327761620,1716444555047,-620.50106488,0.00023377,2]
[327761621,1716444555070,-500.0,0.00023454,2]
[327761622,1716444555090,-500.0,0.00023454,2]
[327761623,1716444555110,-500.0,0.00023454,2]
[327761624,1716444555134,-500.0,0.00023454,2]
[327761625,1716444555153,-500.0,0.00023454,2]
[327761626,1716444555177,-500.0,0.00023454,2]
[327761627,1716444555198,-500.0,0.00023454,2]
[327761628,1716444555224,-500.0,0.00023454,2]
[327761629,1716444555246,-500.0,0.00023454,2]
[327761630,1716444555267,-500.0,0.00023454,2]
[327761631,1716444555288,-505.62495653,0.00023454,2]
[327761632,1716444555313,-500.0,0.00023454,2]
[327761633,1716444555333,-438.70971737,0.00023454,2]
[327761634,1716444555354,-250.0,0.00023454,2]
[327761635,1716444555374,-500.0,0.00023454,2]
[327761636,1716444555394,-500.0,0.00023454,2]
[327761637,1716444555414,-500.0,0.00023454,2]
[327761638,1716444555434,-250.0,0.00023454,2]
[327761639,1716444555458,-500.0,0.00023454,2]
[327761640,1716444555479,-500.0,0.00023454,2]
[327761641,1716444555499,-500.0,0.00023454,2]
[327761642,1716444555520,-500.0,0.00023454,2]
[327761643,1716444555541,-514.64904023,0.00023454,2]
[327761644,1716444555565,-500.0,0.00023454,2]
[327761645,1716444555584,-500.0,0.00023454,2]
[327761646,1716444555605,-327.56089708,0.00023454,2]
[327761647,1716444555626,-500.0,0.00023454,2]
[327761648,1716444555652,-500.0,0.00023454,2]
[327761649,1716444555677,-500.0,0.00023454,2]
[327761650,1716444555704,-500.0,0.00023454,2]
[327761651,1716444555726,-500.0,0.00023454,2]
[327761652,1716444555753,-500.0,0.00023454,2]
[327761653,1716444555779,-500.0,0.00023454,2]
[327761654,1716444555800,-500.0,0.00023454,2]
[327761655,1716444555824,-500.0,0.00023454,2]
[327761656,1716444555849,-500.0,0.00023454,2]
[327761657,1716444555871,-500.0,0.00023454,2]
[327761658,1716444555894,-500.0,0.00023454,2]
[327761659,1716444555921,-325.60496265,0.00023454,2]
[327761660,1716444555942,-500.0,0.00023454,2]
[327761661,1716444555962,-500.0,0.00023454,2]
[327761662,1716444555985,-500.0,0.00023454,2]
[327761663,1716444556010,-500.0,0.00023454,2]
[327761664,1716444556030,-500.0,0.00023454,2]
[327761665,1716444556051,-500.0,0.00023454,2]
[327761666,1716444556071,-500.0,0.00023454,2]
[327761667,1716444556093,-500.0,0.00023454,2]
[327761668,1716444556117,-500.0,0.00023454,2]
[327761669,1716444556138,-500.0,0.00023454,2]
[327761670,1716444556161,-500.0,0.00023454,2]
[327761671,1716444556272,-500.0,0.00023454,2]
[327761672,1716444556294,-502.67569381,0.00023454,2]
[327761673,1716444556316,-500.0,0.00023454,2]
[327761674,1716444556337,-500.0,0.00023454,2]
[327761675,1716444556358,-500.0,0.00023454,2]
[327761676,1716444556380,-500.0,0.00023454,2]
[327761677,1716444556401,-500.0,0.00023454,2]
[327761678,1716444556422,-500.0,0.00023454,2]
[327761679,1716444556442,-500.0,0.00023454,2]
[327761680,1716444556463,-500.0,0.00023454,2]
[327761681,1716444556484,-500.0,0.00023454,2]
[327761682,1716444556505,-500.0,0.00023454,2]
[327761683,1716444556527,-500.0,0.00023454,2]
[327761684,1716444556548,-500.0,0.00023454,2]
[327761685,1716444556568,-500.0,0.00023454,2]
[327761686,1716444556588,-500.0,0.00023454,2]
[327761687,1716444556608,-439.39371296,0.00023454,2]
[327761688,1716444556628,-500.0,0.00023454,2]
[327761689,1716444556649,-500.0,0.00023454,2]
[327761690,1716444556669,-500.0,0.00023454,2]
[327761691,1716444556688,-500.0,0.00023454,2]
[327761692,1716444556708,-500.0,0.00023454,2]
[327761693,1716444556728,-500.0,0.00023454,2]
[327761694,1716444556749,-500.0,0.00023454,2]
[327761695,1716444556769,-500.0,0.00023454,2]
[327761696,1716444556790,-500.0,0.00023454,2]
[327761697,1716444556810,-500.0,0.00023454,2]
[327761698,1716444556831,-500.0,0.00023454,2]
[327761699,1716444556851,-500.0,0.00023454,2]
[327761700,1716444556872,-500.0,0.00023454,2]
[327761701,1716444556896,-500.0,0.00023454,2]
[327761702,1716444556916,-500.0,0.00023454,2]
[327761703,1716444556936,-500.0,0.00023454,2]
[327761704,1716444556956,-500.0,0.00023454,2]
[327761705,1716444556975,-500.0,0.00023454,2]
[327761706,1716444556995,-500.0,0.00023454,2]
[327761707,1716444557016,-500.0,0.00023454,2]
[327761708,1716444557036,-500.0,0.00023454,2]
[327761709,1716444557056,-500.0,0.00023454,2]
[327761710,1716444557077,-500.0,0.00023454,2]
[327761711,1716444557097,-500.0,0.00023454,2]
[327761712,1716444557118,-500.0,0.00023454,2]
[327761713,1716444557139,-500.0,0.00023454,2]
[327761714,1716444557158,-500.0,0.00023454,2]
[327761715,1716444557183,-500.0,0.00023454,2]
[327761716,1716444557203,-500.0,0.00023454,2]
[327761717,1716444557224,-500.0,0.00023454,2]
[327761718,1716444557244,-500.0,0.00023454,2]
[327761719,1716444557269,-500.0,0.00023454,2]
[327761720,1716444557293,-726.27234165,0.00023454,2]
[327761721,1716444557314,-500.0,0.00023454,2]
[327761722,1716444557337,-726.27234165,0.00023454,2]
[327761723,1716444557358,-500.0,0.00023454,2]
[327761724,1716444557380,-726.27234165,0.00023454,2]
[327761725,1716444557401,-500.0,0.00023454,2]
[327761726,1716444557423,-500.0,0.00023454,2]
[327761727,1716444557447,-726.27234165,0.00023454,2]
[327761728,1716444557468,-500.0,0.00023454,2]
[327761729,1716444557490,-500.0,0.00023454,2]
[327761730,1716444557515,-726.27234165,0.00023454,2]
[327761731,1716444557537,-214.63022654,0.00023454,2]
[327761732,1716444557562,-726.27234165,0.00023454,2]
[327761733,1716444557672,-551.85993685,0.00023454,2]
[327761734,1716444557698,-726.27234165,0.00023454,2]
[327761735,1716444557719,-500.0,0.00023454,2]
[327761736,1716444557744,-726.27234165,0.00023454,2]
[327761737,1716444557766,-500.0,0.00023454,2]
[327761738,1716444557792,-726.27234165,0.00023454,2]
[327761739,1716444557813,-500.0,0.00023454,2]
[327761740,1716444557837,-726.27234165,0.00023454,2]
[327761741,1716444557860,-726.27234165,0.00023454,2]
[327761742,1716444557883,-726.27234165,0.00023454,2]
[327761743,1716444557907,-726.27234165,0.00023454,2]
[327761744,1716444557929,-726.27234165,0.00023454,2]
[327761745,1716444557948,-500.0,0.00023454,2]
[327761746,1716444557971,-726.27234165,0.00023454,2]
[327761747,1716444557996,-500.0,0.00023454,2]
[327761748,1716444558018,-500.0,0.00023454,2]
[327761749,1716444558044,-726.27234165,0.00023454,2]
[327761750,1716444558073,-726.27234165,0.00023454,2]
[327761751,1716444558099,-183.06177775,0.00023454,2]
[327761752,1716444558412,-543.2105639,0.00023454,2]
[327761753,1716444558438,-726.27234165,0.00023454,2]
[327761754,1716444558462,-726.27234165,0.00023454,2]
[327761755,1716444558486,-726.27234165,0.00023454,2]
[327761756,1716444558510,-726.27234165,0.00023454,2]
[327761757,1716444558536,-726.27234165,0.00023454,2]
[327761758,1716444558562,-726.27234165,0.00023454,2]
[327761759,1716444558586,-726.27234165,0.00023454,2]
[327761760,1716444558609,-726.27234165,0.00023454,2]
[327761761,1716444558736,-726.27234165,0.00023454,2]
[327761762,1716444558760,-726.27234165,0.00023454,2]
[327761763,1716444558785,-726.27234165,0.00023454,2]
[327761764,1716444558809,-726.27234165,0.00023454,2]
[327761765,1716444558833,-726.27234165,0.00023454,2]
[327761766,1716444558856,-726.27234165,0.00023454,2]
[327761767,1716444558879,-726.27234165,0.00023454,2]
[327761768,1716444558903,-726.27234165,0.00023454,2]
[327761769,1716444558926,-726.27234165,0.00023454,2]
[327761770,1716444558952,-726.27234165,0.00023454,2]
[327761771,1716444558978,-726.27234165,0.00023454,2]
[327761772,1716444559001,-726.27234165,0.00023454,2]
[327761773,1716444559024,-726.27234165,0.00023454,2]
[327761774,1716444559048,-726.27234165,0.00023454,2]
[327761775,1716444559068,-500.0,0.00023454,2]
[327761776,1716444559087,-500.0,0.00023454,2]
[327761777,1716444559107,-500.0,0.00023454,2]
[327761778,1716444559127,-250.0,0.00023454,2]
[327761779,1716444559151,-725.73831786,0.00023454,2]
[327761780,1716444559178,-725.73831786,0.00023454,2]
[327761781,1716444559201,-725.73831786,0.00023454,2]
[327761782,1716444559226,-725.73831786,0.00023454,2]
[327761783,1716444559251,-725.73831786,0.00023454,2]
[327761784,1716444559276,-725.73831786,0.00023454,2]
[327761785,1716444559301,-725.73831786,0.00023454,2]
[327761786,1716444559325,-725.73831786,0.00023454,2]
[327761787,1716444559349,-725.73831786,0.00023454,2]
[327761788,1716444559373,-725.73831786,0.00023454,2]
[327761789,1716444559397,-725.73831786,0.00023454,2]
[327761790,1716444559441,-725.73831786,0.00023454,2]
[327761791,1716444559488,-725.73831786,0.00023454,2]
[327761792,1716444559535,-725.73831786,0.00023454,2]
[327761793,1716444559573,-725.73831786,0.00023454,2]
[327761794,1716444559620,-725.73831786,0.00023454,2]
[327761795,1716444559656,-13370.32209914,0.00023455,11]
[327761796,1716444559691,-192.24251,0.00023455,2]
[327761797,1716444559723,-192.24251,0.00023455,2]
[327761798,1716444559755,-192.24251,0.00023455,2]
[327761799,1716444559790,-192.24251,0.00023455,2]
[327761800,1716444559822,-508.578085,0.00023455,2]
[327761801,1716444559856,-508.578085,0.00023455,2]
[327761802,1716444559889,-508.578085,0.00023455,2]
[327761803,1716444559922,-508.578085,0.00023455,2]
[327761804,1716444559953,-263.708512,0.00023455,2]
[327761805,1716444559984,-263.708512,0.00023455,2]
[327761806,1716444560016,-263.708512,0.00023455,2]
[327761807,1716444560060,-263.708512,0.00023455,2]
[327761808,1716444560098,-263.708512,0.00023455,2]
[327761809,1716444560132,-263.708512,0.00023455,2]
[327761810,1716444560166,-263.708512,0.00023455,2]
[327761811,1716444560201,-263.708512,0.00023455,2]
[327761812,1716444560236,-2636.988581,0.00023455,2]
[327761813,1716444560272,-2636.988581,0.00023455,2]
[327761814,1716444560307,-2636.988581,0.00023455,2]
[327761815,1716444560334,-2636.988581,0.00023455,2]
[327761816,1716444560355,-2636.988581,0.00023455,2]
[327761817,1716444560375,-2636.988581,0.00023455,2]
[327761818,1716444560580,-2636.988581,0.00023455,2]
[327761819,1716444560613,-2636.988581,0.00023455,2]
[327761820,1716444560634,-234.699349,0.00023455,2]
[327761821,1716444560654,-234.699349,0.00023455,2]
[327761822,1716444560674,-234.699349,0.00023455,2]
[327761823,1716444560695,-234.699349,0.00023455,2]
[327761824,1716444560716,-234.699349,0.00023455,2]
[327761825,1716444560737,-234.699349,0.00023455,2]
[327761826,1716444560758,-234.699349,0.00023455,2]
[327761827,1716444560778,-234.699349,0.00023455,2]
[327761828,1716444560800,-166.666666,0.00023456,2]
[327761829,1716444560820,-255.13925979,0.000239,2]
[327761830,1716444561574,-51.06941679,0.000239,2]
[327761831,1716444561596,-474.89706503,0.000239,2]
[327761832,1716444561617,-166.666666,0.00023969,2]
[327761833,1716444561639,-151.0,0.00023999,2]
[327761834,1716444561660,-151.0,0.00023999,2]
[327761835,1716444561680,-151.0,0.00023999,2]
[327761836,1716444561702,-151.0,0.00023999,2]
[327761837,1716444561723,-151.0,0.00023999,2]
[327761838,1716444561744,-151.0,0.00023999,2]
[327761839,1716444561767,-151.0,0.00023999,2]
[327761840,1716444561795,-272.88836,0.00023999,2]
[327761841,1716444561816,-209.472449,0.00023999,2]
[327761842,1716444561837,-209.472449,0.00023999,2]
[327761843,1716444561860,-209.472449,0.00023999,2]
[327761844,1716444561881,-209.472449,0.00023999,2]
[327761845,1716444561902,-3287.289767,0.00023999,2]
[327761846,1716444561923,-151.0,0.00023999,2]
[327761847,1716444561943,-151.0,0.00023999,2]
[327761848,1716444561964,-3287.289767,0.00023999,2]
[327761849,1716444561986,-151.0,0.00023999,2]
[327761850,1716444562008,-202.149563,0.00023999,2]
[327761851,1716444562032,-3287.289767,0.00023999,2]
[327761852,1716444562054,-3287.289767,0.00023999,2]
[327761853,1716444562074,-3603.67272,0.00023999,2]
[327761854,1716444562095,-3603.67272,0.00023999,2]
[327761855,1716444562126,-653.316831,0.00023999,2]
[327761856,1716444562150,-653.316831,0.00023999,2]
[327761857,1716444562176,-3603.67272,0.00023999,2]
[327761858,1716444562198,-627.28369019,0.00023999,2]
[327761862,1716444607496,273.37336231,9.9e-05,2]
[327761863,1716444615554,273.37336231,9.9e-05,2]
[327761864,1716444623790,273.37336231,9.9e-05,2]
[327761906,1716444642718,-232.8,0.00020624,3]
[327761908,1716444642728,-400.0,0.00020913,2]
[327761910,1716444642738,-327.81450984,0.00021,2]
[327761922,1716444642804,-462.26153064,0.00021,2]
[327761927,1716444643310,-499.8,0.00021,2]
[327761931,1716444643324,-777.189629,0.00021,2]
[327761935,1716444643334,-89.425009,0.00021,2]
[327761940,1716444643346,-760.968,0.00021,2]
[327761944,1716444643360,-1093.65,0.00021,2]
[327761947,1716444643371,-641.123,0.00021,2]
[327761950,1716444643383,-510.72,0.00021,2]
[327761959,1716444644584,-1598.99423975,0.00021,2]
[327761961,1716444644594,-232.8,0.00021658,3]
[327761981,1716444644764,-166.666666,0.00021918,2]
[327761984,1716444644774,-232.8,0.00022692,3]
[327761986,1716444644784,-166.666666,0.00022773,2]
[327761989,1716444644794,-485.615674,0.00023454,2]
[327761993,1716444644804,-485.615674,0.00023454,2]
[327761996,1716444644814,-485.615674,0.00023454,2]
[327761999,1716444644824,-485.615674,0.00023454,2]
[327762002,1716444644834,-1063.391534,0.00023454,2]
[327762004,1716444644849,-485.615674,0.00023454,2]
[327762005,1716444644861,-1063.391534,0.00023454,2]
[327762006,1716444644872,-485.615674,0.00023454,2]
[327762007,1716444644883,-1063.391534,0.00023454,2]
[327762008,1716444644894,-1063.391534,0.00023454,2]
[327762009,1716444644905,-1063.391534,0.00023454,2]
[327762010,1716444644915,-1063.391534,0.00023454,2]
[327762011,1716444644926,-220.349741,0.00023454,2]
[327762012,1716444644936,-220.349741,0.00023454,2]
[327762013,1716444644946,-220.349741,0.00023454,2]
[327762014,1716444644956,-176.404974,0.00023454,2]
[327762015,1716444644967,-176.404974,0.00023454,2]
[327762016,1716444644977,-176.404974,0.00023454,2]
[327762017,1716444644988,-220.349741,0.00023454,2]
[327762018,1716444644998,-220.349741,0.00023454,2]
[327762019,1716444645008,-220.349741,0.00023454,2]
[327762020,1716444645019,-176.404974,0.00023454,2]
[327762021,1716444645029,-176.404974,0.00023454,2]
[327762022,1716444645039,-1037.783389,0.00023454,2]
[327762023,1716444645050,-1037.783389,0.00023454,2]
[327762024,1716444645060,-1037.783389,0.00023454,2]
[327762025,1716444645071,-176.404974,0.00023454,2]
[327762026,1716444645081,-1037.783389,0.00023454,2]
[327762027,1716444645091,-1037.783389,0.00023454,2]
[327762028,1716444645102,-1037.783389,0.00023454,2]
[327762029,1716444645113,-151.0,0.00023454,2]
[327762030,1716444645123,-151.0,0.00023454,2]
[327762031,1716444645133,-151.0,0.00023454,2]
[327762032,1716444645143,-485.615674,0.00023455,2]
[327762033,1716444645154,-485.615674,0.00023455,2]
[327762034,1716444645164,-485.615674,0.00023455,2]
[327762035,1716444645175,-1063.391534,0.00023455,2]
[327762036,1716444645190,-485.615674,0.00023455,2]
[327762037,1716444645200,-1063.391534,0.00023455,2]
[327762038,1716444645209,-1063.391534,0.00023455,2]
[327762039,1716444645220,-1063.391534,0.00023455,2]
[327762040,1716444645232,-220.349741,0.00023455,2]
[327762041,1716444645242,-220.349741,0.00023455,2]
[327762042,1716444645253,-176.404974,0.00023455,2]
[327762043,1716444645265,-176.404974,0.00023455,2]
[327762044,1716444645276,-220.349741,0.00023455,2]
[327762045,1716444645288,-220.349741,0.00023455,2]
[327762046,1716444645299,-1037.783389,0.00023455,2]
[327762047,1716444645309,-1037.783389,0.00023455,2]
[327762048,1716444645320,-176.404974,0.00023455,2]
[327762049,1716444645329,-176.404974,0.00023455,2]
[327762050,1716444645339,-1037.783389,0.00023455,2]
[327762051,1716444645349,-1037.783389,0.00023455,2]
[327762052,1716444645360,-151.0,0.00023455,2]
[327762053,1716444645371,-151.0,0.00023455,2]
[327762054,1716444645380,-166.666666,0.00023627,2]
[327762055,1716444645390,-232.8,0.00023727,3]
[327762056,1716444645399,-254.55284091,0.00023951,2]
[327762057,1716444645408,-427.83393699,0.00023998,2]
[327762058,1716444645418,-2976.38902981,0.00023999,2]
[327762059,1716444645428,-653.316831,0.00023999,2]
[327762060,1716444645438,-653.316831,0.00023999,2]
[327762061,1716444645448,-1649.668594,0.00023999,2]
[327762062,1716444645458,-1649.668594,0.00023999,2]
[327762063,1716444645468,-1649.668594,0.00023999,2]
[327762064,1716444645477,-1649.668594,0.00023999,2]
[327762065,1716444645487,-151.0,0.00023999,2]
[327762066,1716444645496,-151.0,0.00023999,2]
[327762067,1716444645507,-151.0,0.00023999,2]
[327762068,1716444645517,-151.0,0.00023999,2]
[327762069,1716444645527,-192.24251,0.00023999,2]
[327762070,1716444645536,-192.24251,0.00023999,2]
[327762071,1716444645546,-661.712251,0.00023999,2]
[327762072,1716444645556,-661.712251,0.00023999,2]
[327762073,1716444645565,-661.712251,0.00023999,2]
[327762074,1716444645575,-661.712251,0.00023999,2]
[327762075,1716444645584,-508.578085,0.00023999,2]
[327762076,1716444645594,-508.578085,0.00023999,2]
[327762077,1716444645603,-263.708512,0.00023999,2]
[327762078,1716444645614,-263.708512,0.00023999,2]
[327762079,1716444645623,-2636.988581,0.00023999,2]
[327762080,1716444645632,-2636.988581,0.00023999,2]
[327762081,1716444645642,-234.699349,0.00023999,2]
[327762082,1716444645651,-234.699349,0.00023999,2]
[327762083,1716444645661,-485.615674,0.00023999,2]
[327762084,1716444645670,-485.615674,0.00023999,2]
[327762085,1716444645679,-485.615674,0.00023999,2]
[327762086,1716444645687,-1063.391534,0.00023999,2]
[327762087,1716444645697,-485.615674,0.00023999,2]
[327762088,1716444645709,-1063.391534,0.00023999,2]
[327762089,1716444645719,-1063.391534,0.00023999,2]
[327762090,1716444645730,-1063.391534,0.00023999,2]
[327762091,1716444645741,-220.349741,0.00023999,2]
[327762092,1716444645763,-220.349741,0.00023999,2]
[327762093,1716444645773,-176.404974,0.00023999,2]
[327762094,1716444645783,-176.404974,0.00023999,2]
[327762095,1716444645793,-220.349741,0.00023999,2]
[327762096,1716444645804,-220.349741,0.00023999,2]
[327762097,1716444645814,-1037.783389,0.00023999,2]
[327762098,1716444645823,-1037.783389,0.00023999,2]
[327762099,1716444645833,-176.404974,0.00023999,2]
[327762100,1716444645842,-176.404974,0.00023999,2]
[327762101,1716444645851,-1037.783389,0.00023999,2]
[327762102,1716444645862,-1037.783389,0.00023999,2]
[327762103,1716444645871,-152.220172,0.00023999,2]
[327762104,1716444645881,-187.27867909,0.00024,2]
[327762105,1716444645890,-808.139886,0.00024382,2]
[327762106,1716444645900,-808.139886,0.00024382,2]
[327762107,1716444645909,-808.139886,0.00024382,2]
[327762108,1716444645919,-808.139886,0.00024382,2]
[327762109,1716444645928,-191.157224,0.00024382,2]
[327762110,1716444645937,-191.157224,0.00024382,2]
[327762111,1716444645947,-191.157224,0.00024382,2]
[327762112,1716444645956,-191.157224,0.00024382,2]
[327762113,1716444645965,-151.0,0.00024382,2]
[327762114,1716444645975,-151.0,0.00024382,2]
[327762115,1716444645984,-151.0,0.00024382,2]
[327762116,1716444645993,-151.0,0.00024382,2]
[327762117,1716444646002,-151.0,0.00024382,2]
[327762118,1716444646012,-151.0,0.00024382,2]
[327762119,1716444646021,-225.059169,0.00024382,2]
[327762120,1716444646030,-225.059169,0.00024382,2]
[327762121,1716444646040,-225.059169,0.00024382,2]
[327762122,1716444646049,-225.059169,0.00024382,2]
[327762123,1716444646058,-151.0,0.00024382,2]
[327762124,1716444646068,-151.0,0.00024382,2]
[327762125,1716444646077,-160.366156,0.00024382,2]
[327762126,1716444646086,-151.0,0.00024382,2]
[327762127,1716444646095,-160.366156,0.00024382,2]
[327762128,1716444646106,-160.366156,0.00024382,2]
[327762129,1716444646115,-160.366156,0.00024382,2]
[327762130,1716444646125,-209.472449,0.00024382,2]
[327762131,1716444646134,-209.472449,0.00024382,2]
[327762132,1716444646143,-151.0,0.00024382,2]
[327762133,1716444646152,-3287.289767,0.00024382,2]
[327762134,1716444646162,-3287.289767,0.00024382,2]
[327762135,1716444646171,-3603.67272,0.00024382,2]
[327762136,1716444646185,-653.316831,0.00024382,2]
[327762137,1716444646194,-3603.67272,0.00024382,2]
[327762138,1716444646204,-653.316831,0.00024382,2]
[327762139,1716444646213,-1649.668594,0.00024382,2]
[327762140,1716444646224,-1649.668594,0.00024382,2]
[327762141,1716444646233,-151.0,0.00024382,2]
[327762142,1716444646243,-151.0,0.00024382,2]
[327762143,1716444646252,-661.712251,0.00024382,2]
[327762144,1716444646263,-661.712251,0.00024382,2]
[327762145,1716444646362,-263.708512,0.00024382,2]
[327762146,1716444646371,-263.708512,0.00024382,2]
[327762147,1716444646381,-263.708512,0.00024382,2]
[327762148,1716444646390,-263.708512,0.00024382,2]
[327762149,1716444646400,-2636.988581,0.00024382,2]
[327762150,1716444646410,-2636.988581,0.00024382,2]
[327762152,1716444646419,-2636.988581,0.00024382,2]
[327762153,1716444646429,-2636.988581,0.00024382,2]
[327762154,1716444646438,-234.699349,0.00024382,2]
[327762155,1716444646448,-234.699349,0.00024382,2]
[327762156,1716444646458,-234.699349,0.00024382,2]
[327762157,1716444646467,-234.699349,0.00024382,2]
[327762158,1716444646477,-485.615674,0.00024382,2]
[327762159,1716444646487,-485.615674,0.00024382,2]
[327762160,1716444646497,-1063.391534,0.00024382,2]
[327762161,1716444646506,-1063.391534,0.00024382,2]
[327762162,1716444646515,-220.349741,0.00024382,2]
[327762163,1716444646525,-176.404974,0.00024382,2]
[327762164,1716444646535,-220.349741,0.00024382,2]
[327762165,1716444646544,-1037.783389,0.00024382,2]
[327762166,1716444646553,-176.404974,0.00024382,2]
[327762167,1716444646563,-1037.783389,0.00024382,2]
[327762168,1716444646572,-500.0,0.00024383,2]
[327762169,1716444646582,-500.0,0.00024383,2]
[327762170,1716444646592,-500.0,0.00024383,2]
[327762171,1716444646603,-500.0,0.00024383,2]
[327762172,1716444646615,-454.39471206,0.00024383,2]
[327762173,1716444646625,-500.0,0.00024383,2]
[327762174,1716444646635,-500.0,0.00024383,2]
[327762175,1716444646645,-575.0,0.00024383,2]
[327762176,1716444646654,-200.0,0.00024383,2]
[327762177,1716444646664,-500.0,0.00024383,2]
[327762178,1716444646673,-500.0,0.00024383,2]
[327762179,1716444646682,-500.0,0.00024383,2]
[327762180,1716444646691,-500.0,0.00024383,2]
[327762181,1716444646701,-339.38906796,0.00024383,2]
[327762183,1716444646710,-500.0,0.00024383,2]
[327762184,1716444646720,-500.0,0.00024383,2]
[327762185,1716444646729,-500.0,0.00024383,2]
[327762186,1716444646738,-198.26826913,0.00024383,2]
[327762187,1716444646747,-396.955533,0.00024384,2]
[327762188,1716444646758,-275.268862,0.00024384,2]
[327762189,1716444646767,-151.0,0.00024384,2]
[327762190,1716444646776,-225.059169,0.00024384,2]
[327762191,1716444646786,-225.059169,0.00024384,2]
[327762192,1716444646795,-160.366156,0.00024384,2]
[327762193,1716444646804,-160.366156,0.00024384,2]
[327762194,1716444646814,-166.666666,0.00024482,2]
[327762195,1716444646823,-620.02505324,0.00024546,2]
[327762196,1716444646832,-380.0,0.00024658,2]
[327762197,1716444646841,-232.8,0.00024761,5]
[327762198,1716444646851,-11381.53,0.0002498,3]
[327762199,1716444646860,-13657.84,0.0002499,3]
[327762200,1716444646869,-190.56382775,0.00025,2]
[327762201,1716444646878,-400.96297874,0.00025,2]
[327762202,1716444646887,-155.03720893,0.00025,2]
[327762203,1716444646896,-167.53158323,0.00025,2]
[327762204,1716444646906,-430.3618645,0.00025,2]
[327762205,1716444646915,-485.615674,0.00025,2]
[327762206,1716444646924,-485.615674,0.00025,2]
[327762207,1716444646933,-1063.391534,0.00025,2]
[327762208,1716444646942,-1063.391534,0.00025,2]
[327762209,1716444646951,-220.349741,0.00025,2]
[327762210,1716444646960,-176.404974,0.00025,2]
[327762211,1716444646969,-220.349741,0.00025,2]
[327762212,1716444646978,-1037.783389,0.00025,2]
[327762213,1716444646987,-176.404974,0.00025,2]
[327762214,1716444646996,-1037.783389,0.00025,2]
[327762215,1716444647005,-150.90945433,0.00025452,4]
[327762216,1716444647014,-620.00125266,0.00025774,2]
[327762217,1716444647023,-232.8,0.00025795,5]
[327762218,1716444647033,-808.139886,0.00025949,2]
[327762219,1716444647042,-808.139886,0.00025949,2]
[327762220,1716444647051,-191.157224,0.00025949,2]
[327762221,1716444647060,-191.157224,0.00025949,2]
[327762222,1716444647069,-151.0,0.00025949,2]
[327762223,1716444647078,-221.432469,0.00025949,2]
[327762224,1716444647087,-150.90945433,0.00025971,2]
[327762225,1716444647096,-6685.16104957,0.00025979,11]
[327762226,1716444647106,-151.0,0.00025979,2]
[327762227,1716444647115,-280.958429,0.00025979,2]
[327762228,1716444647124,-280.958429,0.00025979,2]
[327762229,1716444647134,-151.0,0.00025979,2]
[327762230,1716444647143,-151.0,0.00025979,2]